fUST/lending_fUST_20240613
["ID","MTS","AMOUNT","RATE_DAILY","PERIOD"]
[329289158,1718218247821,-822.35,0.00017259,2]
[329289160,1718218247833,-417.96691704,0.0001726,2]
[329289162,1718218247843,-500.0,0.0001726,2]
[329289164,1718218247855,-500.0,0.0001726,2]
[329289166,1718218247870,-222.77442117,0.0001726,2]
[329289181,1718218248031,-277.22557883,0.0001726,2]
[329289183,1718218248042,-534.39,0.0001726,2]
[329289184,1718218248054,-506.90073842,0.0001726,2]
[329289186,1718218248080,-500.0,0.0001726,2]
[329289188,1718218248091,-714.94,0.0001726,2]
[329289190,1718218248103,-350.70549292,0.0001726,2]
[329289192,1718218248113,-619.2,0.0001726,2]
[329289195,1718218248127,-500.0,0.0001726,2]
[329289198,1718218248141,-500.0,0.0001726,2]
[329289201,1718218248152,-500.0,0.0001726,2]
[329289203,1718218248164,-500.0,0.0001726,2]
[329289205,1718218248175,-628.72,0.0001726,2]
[329289207,1718218248186,-500.0,0.0001726,2]
[329289209,1718218248196,-500.0,0.0001726,2]
[329289211,1718218248207,-845.56,0.0001726,2]
[329289213,1718218248220,-631.91,0.0001726,2]
[329289215,1718218248231,-500.0,0.0001726,2]
[329289217,1718218248243,-500.0,0.0001726,2]
[329289219,1718218248253,-193.29,0.0001726,2]
[329289221,1718218248264,-500.0,0.0001726,2]
[329289222,1718218248275,-445.49,0.0001726,2]
[329289224,1718218248286,-500.0,0.0001726,2]
[329289226,1718218248298,-500.0,0.0001726,2]
[329289228,1718218248308,-518.66,0.0001726,2]
[329289230,1718218248319,-500.0,0.0001726,2]
[329289232,1718218248332,-813.0,0.0001726,2]
[329289234,1718218248347,-915.71,0.0001726,2]
[329289236,1718218248362,-706.56,0.0001726,2]
[329289238,1718218248375,-500.0,0.0001726,2]
[329289240,1718218248386,-1091.02,0.0001726,2]
[329289242,1718218248398,-500.0,0.0001726,2]
[329289244,1718218248410,-500.0,0.0001726,2]
[329289246,1718218248422,-500.0,0.0001726,2]
[329289247,1718218248434,-543.67851361,0.0001726,2]
[329289249,1718218248446,-500.0,0.0001726,2]
[329289251,1718218248457,-500.0,0.0001726,2]
[329289253,1718218248469,-500.0,0.0001726,2]
[329289255,1718218248481,-500.0,0.0001726,2]
[329289257,1718218248494,-500.0,0.0001726,2]
[329289259,1718218248505,-500.0,0.0001726,2]
[329289261,1718218248521,-3695.79,0.0001726,2]
[329289263,1718218248533,-996.12,0.0001726,2]
[329289265,1718218248546,-642.09,0.0001726,2]
[329289267,1718218248557,-5333.99,0.0001726,2]
[329289269,1718218248569,-191.60346291,0.0001726,2]
[329289271,1718218248582,-500.0,0.0001726,2]
[329289273,1718218248595,-1006.0,0.0001726,2]
[329289275,1718218248610,-500.0,0.0001726,2]
[329289277,1718218248623,-500.0,0.0001726,2]
[329289279,1718218248638,-595.78,0.0001726,2]
[329289281,1718218248652,-500.0,0.0001726,2]
[329289283,1718218248665,-739.73,0.0001726,2]
[329289284,1718218248676,-1267.92,0.0001726,2]
[329289286,1718218248687,-500.0,0.0001726,2]
[329289289,1718218248699,-4893.17348461,0.0001726,2]
[329289293,1718218248734,-500.0,0.00016712,2]
[329289295,1718218248744,-3643.92651539,0.0001726,2]
[329289297,1718218248755,-599.08,0.0001726,2]
[329289299,1718218248765,-500.0,0.0001726,2]
[329289301,1718218248775,-500.0,0.0001726,2]
[329289303,1718218248785,-500.0,0.0001726,2]
[329289305,1718218248795,-1927.98366661,0.0001726,2]
[329289307,1718218248808,-3764.94633339,0.0001726,2]
[329289309,1718218248818,-500.0,0.0001726,2]
[329289311,1718218248829,-500.0,0.0001726,2]
[329289313,1718218248839,-2249.61,0.0001726,2]
[329289315,1718218248850,-500.0,0.0001726,2]
[329289317,1718218248862,-2948.13,0.0001726,2]
[329289318,1718218248875,-500.0,0.0001726,2]
[329289320,1718218248885,-500.0,0.0001726,2]
[329289322,1718218248897,-500.0,0.0001726,2]
[329289324,1718218248909,-500.0,0.0001726,2]
[329289325,1718218248919,-963.91,0.0001726,2]
[329289327,1718218248931,-6539.54,0.0001726,2]
[329289329,1718218248942,-800.82,0.0001726,2]
[329289330,1718218248953,-500.0,0.0001726,2]
[329289332,1718218248964,-500.0,0.0001726,2]
[329289333,1718218248974,-500.0,0.0001726,2]
[329289335,1718218248984,-500.0,0.0001726,2]
[329289337,1718218248994,-691.21,0.0001726,2]
[329289339,1718218249005,-500.0,0.0001726,2]
[329289340,1718218249016,-668.25,0.0001726,2]
[329289341,1718218249026,-1002.76,0.0001726,2]
[329289342,1718218249036,-500.0,0.0001726,2]
[329289343,1718218249048,-500.0,0.0001726,2]
[329289344,1718218249075,-500.0,0.0001726,2]
[329289345,1718218249088,-500.0,0.0001726,2]
[329289346,1718218249099,-500.0,0.0001726,2]
[329289348,1718218249113,-2159.14,0.0001726,2]
[329289350,1718218249126,-500.0,0.0001726,2]
[329289352,1718218249137,-1686.97,0.0001726,2]
[329289354,1718218249148,-222.37017065,0.0001726,2]
[329289356,1718218249159,-500.0,0.0001726,2]
[329289358,1718218249169,-826.24,0.0001726,2]
[329289360,1718218249179,-500.0,0.0001726,2]
[329289362,1718218249190,-789.26,0.0001726,2]
[329289364,1718218249201,-500.0,0.0001726,2]
[329289366,1718218249212,-925.88,0.0001726,2]
[329289368,1718218249223,-1952.53,0.0001726,2]
[329289370,1718218249234,-1416.41,0.0001726,2]
[329289372,1718218249245,-500.0,0.0001726,2]
[329289374,1718218249256,-200.0,0.00017532,2]
[329289376,1718218249266,-563.45,0.00017533,2]
[329289378,1718218249277,-563.45,0.00017533,2]
[329289380,1718218249288,-1019.57,0.00017533,2]
[329289382,1718218249299,-1019.57,0.00017533,2]
[329289384,1718218249310,-822.35,0.00017533,2]
[329289386,1718218249322,-822.35,0.00017533,2]
[329289388,1718218249333,-500.0,0.00017534,2]
[329289390,1718218249343,-500.0,0.00017534,2]
[329289392,1718218249355,-500.0,0.00017534,2]
[329289394,1718218249366,-714.94,0.00017534,2]
[329289396,1718218249380,-619.2,0.00017534,2]
[329289398,1718218249391,-500.0,0.00017534,2]
[329289400,1718218249402,-500.0,0.00017534,2]
[329289402,1718218249413,-500.0,0.00017534,2]
[329289404,1718218249423,-533.18,0.00017534,2]
[329289406,1718218249434,-628.72,0.00017534,2]
[329289408,1718218249445,-500.0,0.00017534,2]
[329289410,1718218249456,-500.0,0.00017534,2]
[329289412,1718218249467,-845.56,0.00017534,2]
[329289414,1718218249477,-500.0,0.00017534,2]
[329289416,1718218249488,-500.0,0.00017534,2]
[329289418,1718218249499,-500.0,0.00017534,2]
[329289420,1718218249510,-585.20178066,0.00017534,2]
[329289422,1718218249520,-500.0,0.00017534,2]
[329289424,1718218249530,-500.0,0.00017534,2]
[329289426,1718218249541,-813.0,0.00017534,2]
[329289428,1718218249553,-915.71,0.00017534,2]
[329289430,1718218249564,-706.56,0.00017534,2]
[329289432,1718218249575,-500.0,0.00017534,2]
[329289434,1718218249587,-1091.02,0.00017534,2]
[329289436,1718218249599,-500.0,0.00017534,2]
[329289438,1718218249614,-532.66482319,0.00017534,2]
[329289440,1718218249627,-500.0,0.00017534,2]
[329289442,1718218249638,-500.0,0.00017534,2]
[329289444,1718218249649,-500.0,0.00017534,2]
[329289446,1718218249660,-500.0,0.00017534,2]
[329289448,1718218249671,-500.0,0.00017534,2]
[329289450,1718218249683,-500.0,0.00017534,2]
[329289452,1718218249693,-388.4618477,0.00017534,2]
[329289454,1718218249704,-3695.79,0.00017534,2]
[329289456,1718218249715,-996.12,0.00017534,2]
[329289458,1718218249725,-642.09,0.00017534,2]
[329289460,1718218249737,-5333.99,0.00017534,2]
[329289461,1718218249748,-500.0,0.00017534,2]
[329289463,1718218249758,-1006.0,0.00017534,2]
[329289465,1718218249769,-500.0,0.00017534,2]
[329289467,1718218249780,-500.0,0.00017534,2]
[329289469,1718218249791,-500.0,0.00017534,2]
[329289471,1718218249802,-739.73,0.00017534,2]
[329289473,1718218249812,-1267.92,0.00017534,2]
[329289475,1718218249824,-500.0,0.00017534,2]
[329289477,1718218249834,-8537.1,0.00017534,2]
[329289479,1718218249846,-599.08,0.00017534,2]
[329289480,1718218249861,-500.0,0.00017534,2]
[329289482,1718218249872,-500.0,0.00017534,2]
[329289484,1718218249885,-500.0,0.00017534,2]
[329289487,1718218249898,-5692.93,0.00017534,2]
[329289488,1718218249910,-500.0,0.00017534,2]
[329289490,1718218249920,-2249.61,0.00017534,2]
[329289492,1718218249932,-2948.13,0.00017534,2]
[329289493,1718218249943,-500.0,0.00017534,2]
[329289494,1718218249954,-500.0,0.00017534,2]
[329289495,1718218249965,-500.0,0.00017534,2]
[329289496,1718218249975,-500.0,0.00017534,2]
[329289497,1718218249986,-963.91,0.00017534,2]
[329289498,1718218249996,-6539.54,0.00017534,2]
[329289499,1718218250006,-800.82,0.00017534,2]
[329289500,1718218250017,-500.0,0.00017534,2]
[329289501,1718218250027,-500.0,0.00017534,2]
[329289502,1718218250037,-500.0,0.00017534,2]
[329289503,1718218250048,-500.0,0.00017534,2]
[329289504,1718218250062,-691.21,0.00017534,2]
[329289505,1718218250075,-500.0,0.00017534,2]
[329289506,1718218250087,-668.25,0.00017534,2]
[329289507,1718218250098,-1002.76,0.00017534,2]
[329289508,1718218250111,-500.0,0.00017534,2]
[329289509,1718218250122,-500.0,0.00017534,2]
[329289510,1718218250136,-500.0,0.00017534,2]
[329289511,1718218250147,-500.0,0.00017534,2]
[329289512,1718218250157,-500.0,0.00017534,2]
[329289513,1718218250168,-2159.14,0.00017534,2]
[329289514,1718218250179,-500.0,0.00017534,2]
[329289515,1718218250190,-1686.97,0.00017534,2]
[329289516,1718218250202,-372.17,0.00017534,2]
[329289517,1718218250213,-826.24,0.00017534,2]
[329289518,1718218250225,-500.0,0.00017534,2]
[329289520,1718218250236,-789.26,0.00017534,2]
[329289521,1718218250247,-500.0,0.00017534,2]
[329289522,1718218250257,-925.88,0.00017534,2]
[329289523,1718218250269,-1952.53,0.00017534,2]
[329289524,1718218250280,-1416.41,0.00017534,2]
[329289525,1718218250290,-500.0,0.00017534,2]
[329289526,1718218250301,-202.7,0.00017611,2]
[329289527,1718218250313,-183.57544719,0.00017708,2]
[329289528,1718218250324,-153.0,0.00017726,2]
[329289529,1718218250335,-153.0,0.00017726,2]
[329289530,1718218250346,-153.0,0.00017726,2]
[329289531,1718218250357,-306.0,0.00017728,2]
[329289532,1718218250368,-153.0,0.00017764,2]
[329289533,1718218250382,-153.0,0.00017764,2]
[329289534,1718218250393,-153.0,0.00017764,2]
[329289535,1718218250403,-563.45,0.00017807,2]
[329289536,1718218250414,-563.45,0.00017807,2]
[329289537,1718218250425,-1019.57,0.00017807,2]
[329289538,1718218250436,-1019.57,0.00017807,2]
[329289539,1718218250448,-822.35,0.00017807,2]
[329289540,1718218250459,-822.35,0.00017807,2]
[329289541,1718218250471,-500.0,0.00017808,2]
[329289542,1718218250484,-295.05,0.00017808,2]
[329289543,1718218250495,-211.33090322,0.00017808,2]
[329289544,1718218250508,-714.94,0.00017808,2]
[329289545,1718218250521,-619.2,0.00017808,2]
[329289546,1718218250536,-500.0,0.00017808,2]
[329289547,1718218250547,-500.0,0.00017808,2]
[329289548,1718218250561,-500.0,0.00017808,2]
[329289549,1718218250574,-628.72,0.00017808,2]
[329289550,1718218250586,-500.0,0.00017808,2]
[329289551,1718218250603,-500.0,0.00017808,2]
[329289552,1718218250619,-845.56,0.00017808,2]
[329289553,1718218250631,-500.0,0.00017808,2]
[329289554,1718218250644,-500.0,0.00017808,2]
[329289555,1718218250656,-500.0,0.00017808,2]
[329289556,1718218250666,-318.25,0.00017808,2]
[329289557,1718218250681,-500.0,0.00017808,2]
[329289558,1718218250693,-813.0,0.00017808,2]
[329289559,1718218250837,-915.71,0.00017808,2]
[329289560,1718218250848,-706.56,0.00017808,2]
[329289561,1718218250862,-500.0,0.00017808,2]
[329289562,1718218250876,-1091.02,0.00017808,2]
[329289563,1718218250888,-500.0,0.00017808,2]
[329289564,1718218250900,-500.0,0.00017808,2]
[329289565,1718218250913,-500.0,0.00017808,2]
[329289566,1718218250924,-500.0,0.00017808,2]
[329289567,1718218250935,-500.0,0.00017808,2]
[329289568,1718218250948,-500.0,0.00017808,2]
[329289569,1718218250962,-500.0,0.00017808,2]
[329289570,1718218250977,-3695.79,0.00017808,2]
[329289571,1718218250988,-996.12,0.00017808,2]
[329289572,1718218250999,-642.09,0.00017808,2]
[329289573,1718218251010,-5333.99,0.00017808,2]
[329289574,1718218251021,-500.0,0.00017808,2]
[329289575,1718218251032,-1006.0,0.00017808,2]
[329289576,1718218251043,-500.0,0.00017808,2]
[329289577,1718218251067,-151.0,0.00017808,2]
[329289578,1718218251079,-500.0,0.00017808,2]
[329289579,1718218251090,-484.08,0.00017808,2]
[329289580,1718218251101,-739.73,0.00017808,2]
[329289581,1718218251115,-151.0,0.00017808,2]
[329289582,1718218251126,-1267.92,0.00017808,2]
[329289583,1718218251137,-500.0,0.00017808,2]
[329289584,1718218251149,-8537.1,0.00017808,2]
[329289585,1718218251160,-599.08,0.00017808,2]
[329289586,1718218251170,-500.0,0.00017808,2]
[329289587,1718218251181,-151.0,0.00017808,2]
[329289588,1718218251192,-151.0,0.00017808,2]
[329289589,1718218251203,-341.9,0.00017808,2]
[329289590,1718218251214,-151.0,0.00017808,2]
[329289591,1718218251224,-151.0,0.00017808,2]
[329289592,1718218251235,-443.31823412,0.00017808,2]
[329289593,1718218251247,-5692.93,0.00017808,2]
[329289594,1718218251258,-500.0,0.00017808,2]
[329289595,1718218251268,-2249.61,0.00017808,2]
[329289596,1718218251279,-227.987282,0.00017808,2]
[329289597,1718218251291,-227.987282,0.00017808,2]
[329289598,1718218251301,-2948.13,0.00017808,2]
[329289599,1718218251313,-151.0,0.00017808,2]
[329289600,1718218251324,-151.0,0.00017808,2]
[329289601,1718218251334,-500.0,0.00017808,2]
[329289602,1718218251345,-500.0,0.00017808,2]
[329289603,1718218251358,-500.0,0.00017808,2]
[329289604,1718218251369,-500.0,0.00017808,2]
[329289605,1718218251379,-963.91,0.00017808,2]
[329289606,1718218251390,-151.0,0.00017808,2]
[329289607,1718218251401,-6539.54,0.00017808,2]
[329289608,1718218251411,-800.82,0.00017808,2]
[329289609,1718218251422,-283.963508,0.00017808,2]
[329289610,1718218251433,-283.963508,0.00017808,2]
[329289611,1718218251443,-500.0,0.00017808,2]
[329289612,1718218251454,-500.0,0.00017808,2]
[329289613,1718218251465,-500.0,0.00017808,2]
[329289614,1718218251476,-691.21,0.00017808,2]
[329289615,1718218251486,-500.0,0.00017808,2]
[329289616,1718218251497,-668.25,0.00017808,2]
[329289617,1718218251507,-1002.76,0.00017808,2]
[329289618,1718218251517,-500.0,0.00017808,2]
[329289619,1718218251528,-500.0,0.00017808,2]
[329289620,1718218251538,-500.0,0.00017808,2]
[329289621,1718218251548,-500.0,0.00017808,2]
[329289622,1718218251558,-500.0,0.00017808,2]
[329289623,1718218251569,-2159.14,0.00017808,2]
[329289624,1718218251580,-500.0,0.00017808,2]
[329289625,1718218251592,-151.0,0.00017808,2]
[329289626,1718218251602,-376.427566,0.00017808,2]
[329289627,1718218251616,-376.427566,0.00017808,2]
[329289628,1718218251626,-1686.97,0.00017808,2]
[329289629,1718218251636,-826.24,0.00017808,2]
[329289630,1718218251647,-500.0,0.00017808,2]
[329289631,1718218251657,-789.26,0.00017808,2]
[329289632,1718218251668,-500.0,0.00017808,2]
[329289633,1718218251678,-925.88,0.00017808,2]
[329289634,1718218251690,-1952.53,0.00017808,2]
[329289635,1718218251701,-151.0,0.00017808,2]
[329289636,1718218251712,-1416.41,0.00017808,2]
[329289637,1718218251723,-500.0,0.00017808,2]
[329289638,1718218251734,-202.7,0.00017829,2]
[329289639,1718218251744,-563.45,0.00017981,2]
[329289640,1718218251755,-822.35,0.00017999,2]
[329289641,1718218251765,-822.35,0.00017999,2]
[329289642,1718218251776,-822.35,0.00017999,2]
[329289643,1718218251787,-822.35,0.00017999,2]
[329289644,1718218251797,-822.58205705,0.00017999,2]
[329289645,1718218251808,-1355.61945113,0.00018,2]
[329289646,1718218251819,-155.00310006,0.00018,2]
[329289647,1718218251830,-2765.44251206,0.00018,2]
[329289648,1718218251840,-476.69963654,0.00018,2]
[329289649,1718218251853,-876.82850055,0.00018,2]
[329289650,1718218251870,-155.06838982,0.00018,2]
[329289651,1718218251880,-202.7,0.00018046,2]
[329289652,1718218251891,-563.45,0.00018079,2]
[329289653,1718218251902,-563.45,0.00018079,2]
[329289654,1718218251912,-563.45,0.00018079,2]
[329289655,1718218251923,-563.45,0.00018079,2]
[329289656,1718218251934,-563.4757587,0.00018079,2]
[329289657,1718218251945,-151.0,0.00018079,2]
[329289658,1718218251960,-1019.57,0.00018081,2]
[329289659,1718218251971,-1019.57,0.00018081,2]
[329289660,1718218251982,-630.72,0.00018082,2]
[329289661,1718218251993,-714.94,0.00018082,2]
[329289662,1718218252004,-619.2,0.00018082,2]
[329289663,1718218252015,-500.0,0.00018082,2]
[329289664,1718218252025,-500.0,0.00018082,2]
[329289665,1718218252036,-500.0,0.00018082,2]
[329289666,1718218252047,-628.72,0.00018082,2]
[329289667,1718218252069,-530.99,0.00018082,2]
[329289668,1718218252079,-845.56,0.00018082,2]
[329289669,1718218252090,-500.0,0.00018082,2]
[329289670,1718218252101,-500.0,0.00018082,2]
[329289671,1718218252114,-581.20630589,0.00018082,2]
[329289672,1718218252125,-500.0,0.00018082,2]
[329289673,1718218252135,-813.0,0.00018082,2]
[329289674,1718218252146,-915.71,0.00018082,2]
[329289675,1718218252156,-151.0,0.00018082,2]
[329289676,1718218252166,-151.0,0.00018082,2]
[329289677,1718218252177,-706.56,0.00018082,2]
[329289678,1718218252187,-156.284908,0.00018082,2]
[329289679,1718218252199,-151.0,0.00018082,2]
[329289680,1718218252209,-500.0,0.00018082,2]
[329289681,1718218252220,-196.875606,0.00018082,2]
[329289682,1718218252233,-1091.02,0.00018082,2]
[329289683,1718218252243,-500.0,0.00018082,2]
[329289684,1718218252254,-500.0,0.00018082,2]
[329289685,1718218252265,-151.0,0.00018082,2]
[329289686,1718218252275,-151.0,0.00018082,2]
[329289687,1718218252286,-234.42,0.00018082,2]
[329289688,1718218252297,-500.0,0.00018082,2]
[329289689,1718218252307,-207.216664,0.00018082,2]
[329289690,1718218252318,-207.216664,0.00018082,2]
[329289691,1718218252329,-308.01027872,0.00018082,2]
[329289692,1718218252339,-151.0,0.00018082,2]
[329289693,1718218252351,-500.0,0.00018082,2]
[329289694,1718218252364,-195.912788,0.00018082,2]
[329289695,1718218252374,-195.912788,0.00018082,2]
[329289696,1718218252385,-3695.79,0.00018082,2]
[329289697,1718218252395,-996.12,0.00018082,2]
[329289698,1718218252406,-642.09,0.00018082,2]
[329289699,1718218252416,-5333.99,0.00018082,2]
[329289700,1718218252427,-500.0,0.00018082,2]
[329289701,1718218252438,-1006.0,0.00018082,2]
[329289702,1718218252449,-443.64,0.00018082,2]
[329289703,1718218252461,-500.0,0.00018082,2]
[329289704,1718218252474,-739.73,0.00018082,2]
[329289705,1718218252485,-1267.92,0.00018082,2]
[329289706,1718218252497,-500.0,0.00018082,2]
[329289707,1718218252508,-8537.1,0.00018082,2]
[329289708,1718218252518,-599.08,0.00018082,2]
[329289709,1718218252528,-500.0,0.00018082,2]
[329289710,1718218252538,-5692.93,0.00018082,2]
[329289711,1718218252549,-175.82618998,0.00018082,2]
[329289712,1718218252560,-2249.61,0.00018082,2]
[329289713,1718218252570,-2948.13,0.00018082,2]
[329289714,1718218252583,-555.64,0.00018082,2]
[329289715,1718218252595,-500.0,0.00018082,2]
[329289716,1718218252610,-500.0,0.00018082,2]
[329289717,1718218252621,-243.13,0.00018082,2]
[329289718,1718218252632,-963.91,0.00018082,2]
[329289719,1718218252643,-6539.54,0.00018082,2]
[329289720,1718218252653,-800.82,0.00018082,2]
[329289721,1718218252664,-500.0,0.00018082,2]
[329289722,1718218252676,-500.0,0.00018082,2]
[329289723,1718218252688,-500.0,0.00018082,2]
[329289724,1718218252699,-691.21,0.00018082,2]
[329289725,1718218252711,-500.0,0.00018082,2]
[329289726,1718218252723,-668.25,0.00018082,2]
[329289727,1718218252734,-1002.76,0.00018082,2]
[329289728,1718218252744,-500.0,0.00018082,2]
[329289729,1718218252755,-500.0,0.00018082,2]
[329289730,1718218252766,-500.0,0.00018082,2]
[329289731,1718218252778,-500.0,0.00018082,2]
[329289732,1718218252790,-500.0,0.00018082,2]
[329289733,1718218252802,-2159.14,0.00018082,2]
[329289734,1718218252814,-500.0,0.00018082,2]
[329289735,1718218252826,-1686.97,0.00018082,2]
[329289736,1718218252837,-826.24,0.00018082,2]
[329289737,1718218252848,-361.57295176,0.00018082,2]
[329289738,1718218252864,-789.26,0.00018082,2]
[329289739,1718218252877,-500.0,0.00018082,2]
[329289740,1718218252889,-925.88,0.00018082,2]
[329289741,1718218252902,-1952.53,0.00018082,2]
[329289742,1718218252912,-1416.41,0.00018082,2]
[329289743,1718218252923,-500.0,0.00018082,2]
[329289744,1718218252938,-202.7,0.00018263,2]
[329289745,1718218252951,-587.0,0.00018327,2]
[329289746,1718218252963,-151.0,0.00018355,2]
[329289747,1718218252973,-151.0,0.00018355,2]
[329289748,1718218252986,-1019.57,0.00018355,2]
[329289749,1718218252998,-1019.57,0.00018355,2]
[329289750,1718218253011,-1019.57,0.00018355,2]
[329289751,1718218253023,-1019.57,0.00018355,2]
[329289752,1718218253035,-1019.80872739,0.00018355,2]
[329289753,1718218253046,-714.94,0.00018356,2]
[329289754,1718218253073,-619.2,0.00018356,2]
[329289755,1718218253085,-500.0,0.00018356,2]
[329289756,1718218253096,-500.0,0.00018356,2]
[329289757,1718218253108,-628.72,0.00018356,2]
[329289758,1718218253121,-845.56,0.00018356,2]
[329289759,1718218253132,-500.0,0.00018356,2]
[329289760,1718218253144,-500.0,0.00018356,2]
[329289761,1718218253156,-151.0,0.00018356,2]
[329289762,1718218253169,-151.0,0.00018356,2]
[329289763,1718218253181,-500.0,0.00018356,2]
[329289764,1718218253192,-813.0,0.00018356,2]
[329289765,1718218253203,-151.0,0.00018356,2]
[329289766,1718218253215,-915.71,0.00018356,2]
[329289767,1718218253226,-151.0,0.00018356,2]
[329289768,1718218253237,-706.56,0.00018356,2]
[329289769,1718218253250,-392.05857633,0.00018356,2]
[329289770,1718218253262,-1091.02,0.00018356,2]
[329289771,1718218253273,-500.0,0.00018356,2]
[329289772,1718218253286,-500.0,0.00018356,2]
[329289773,1718218253299,-500.0,0.00018356,2]
[329289774,1718218253311,-500.0,0.00018356,2]
[329289775,1718218253322,-3695.79,0.00018356,2]
[329289776,1718218253336,-996.12,0.00018356,2]
[329289777,1718218253351,-642.09,0.00018356,2]
[329289778,1718218253367,-5333.99,0.00018356,2]
[329289779,1718218253379,-500.0,0.00018356,2]
[329289780,1718218253390,-1006.0,0.00018356,2]
[329289781,1718218253402,-151.0,0.00018356,2]
[329289782,1718218253414,-151.0,0.00018356,2]
[329289783,1718218253426,-500.0,0.00018356,2]
[329289784,1718218253437,-739.73,0.00018356,2]
[329289785,1718218253449,-151.0,0.00018356,2]
[329289786,1718218253460,-1267.92,0.00018356,2]
[329289787,1718218253474,-500.0,0.00018356,2]
[329289788,1718218253485,-8537.1,0.00018356,2]
[329289789,1718218253497,-599.08,0.00018356,2]
[329289790,1718218253508,-500.0,0.00018356,2]
[329289791,1718218253519,-151.0,0.00018356,2]
[329289792,1718218253531,-151.0,0.00018356,2]
[329289793,1718218253542,-5692.93,0.00018356,2]
[329289794,1718218253553,-2249.61,0.00018356,2]
[329289795,1718218253564,-227.987282,0.00018356,2]
[329289796,1718218253577,-227.987282,0.00018356,2]
[329289797,1718218253588,-2948.13,0.00018356,2]
[329289798,1718218253600,-151.0,0.00018356,2]
[329289799,1718218253613,-500.0,0.00018356,2]
[329289800,1718218253624,-963.91,0.00018356,2]
[329289801,1718218253634,-151.0,0.00018356,2]
[329289802,1718218253645,-6539.54,0.00018356,2]
[329289803,1718218253656,-800.82,0.00018356,2]
[329289804,1718218253667,-283.963508,0.00018356,2]
[329289805,1718218253719,-283.963508,0.00018356,2]
[329289806,1718218253730,-500.0,0.00018356,2]
[329289807,1718218253741,-487.12,0.00018356,2]
[329289808,1718218253754,-279.62,0.00018356,2]
[329289809,1718218253765,-691.21,0.00018356,2]
[329289810,1718218253777,-500.0,0.00018356,2]
[329289811,1718218253787,-668.25,0.00018356,2]
[329289812,1718218253799,-1002.76,0.00018356,2]
[329289813,1718218253810,-500.0,0.00018356,2]
[329289814,1718218253821,-500.0,0.00018356,2]
[329289815,1718218253832,-500.0,0.00018356,2]
[329289816,1718218253844,-500.0,0.00018356,2]
[329289817,1718218253856,-500.0,0.00018356,2]
[329289818,1718218253872,-2159.14,0.00018356,2]
[329289819,1718218253883,-500.0,0.00018356,2]
[329289820,1718218253894,-151.0,0.00018356,2]
[329289821,1718218253906,-376.427566,0.00018356,2]
[329289822,1718218253916,-376.427566,0.00018356,2]
[329289823,1718218253926,-1686.97,0.00018356,2]
[329289824,1718218253937,-826.24,0.00018356,2]
[329289825,1718218253952,-789.26,0.00018356,2]
[329289826,1718218253965,-500.0,0.00018356,2]